bitfinex/quotes_SOLUSD_20250815
["timestamp","ask_amount","ask_price","bid_price","bid_amount"]
[1755299038208,26.0,187.52,187.46,0.68]
[1755299038409,9.28284917,187.49,187.46,0.68]
[1755299038623,9.28284917,187.48,187.46,0.68]
[1755299038823,15.10621557,187.52,187.46,0.68]
[1755299039010,9.28284917,187.48,187.46,5.33432652]
[1755299039207,9.28284917,187.49,187.45,5.334728]
[1755299039414,9.28284917,187.47,187.45,0.68]
[1755299039625,9.28284917,187.46,187.45,0.68]
[1755299039808,9.28284917,187.46,187.42,0.68]
[1755299040009,9.28284917,187.46,187.43,0.68]
[1755299040205,16.039779,187.57,187.44,0.68]
[1755299040412,9.28284917,187.56,187.5,9.28284917]
[1755299040615,9.28284917,187.54,187.49,0.68]
[1755299040936,9.28284917,187.52,187.49,0.68]
[1755299041232,81.14621557,187.55,187.45,0.68]
[1755299041426,15.10621557,187.51,187.45,0.68]
[1755299041612,9.28284917,187.48,187.45,0.68]
[1755299041812,9.28284917,187.46,187.41,0.68]
[1755299042018,9.28284917,187.46,187.33,38.38]
[1755299042019,41.10621557,187.39,187.33,5.33815474]
[1755299042340,40.06,187.45,187.35,9.28284917]
[1755299042517,40.06,187.45,187.33,6.01815474]
[1755299042518,26.0,187.41,187.33,6.01815474]
[1755299042718,9.28284917,187.39,187.34,0.68]
[1755299042916,15.10621557,187.4,187.34,6.01781718]
[1755299043325,26.0,187.41,187.35,9.96284917]
[1755299043519,26.0,187.41,187.35,0.68]
[1755299043710,35.28284917,187.41,187.35,9.96284917]
[1755299043909,5.33386612,187.49,187.37,9.28284917]
[1755299044212,5.33386612,187.49,187.31,0.68]
[1755299044213,26.0,187.35,187.31,0.68]
[1755299044414,9.28284917,187.32,187.28,5.33959846]
[1755299044717,9.28284917,187.31,187.29,0.68]
[1755299044918,15.10621557,187.33,187.27,0.2]
[1755299045309,15.10621557,187.33,187.27,5.53982283]
[1755299045636,9.28284917,187.32,187.27,5.53982283]
[1755299045831,9.28284917,187.3,187.27,5.53982283]
[1755299046034,9.28284917,187.29,187.27,0.2]
[1755299046334,24.38906474,187.28,187.27,0.2]
[1755299046832,26.0,187.21,187.05,5.34616412]
[1755299047025,26.0,187.17,187.1,9.28284917]
[1755299047228,26.0,187.25,187.11,0.68]
[1755299047418,9.28284917,187.15,187.11,0.68]
[1755299047611,26.0,187.22,187.14,9.28284917]
[1755299047827,35.28284917,187.22,187.17,9.28284917]
[1755299048028,9.28284917,187.18,187.12,26.0]
[1755299048214,9.28284917,187.17,187.14,0.68]
[1755299048412,41.10621557,187.24,187.16,9.28284917]
[1755299048735,16.061247,187.3,187.16,9.28284917]
[1755299048736,9.28284917,187.25,187.17,0.68]
[1755299048952,9.28284917,187.23,187.18,5.34245111]
[1755299049241,9.28284917,187.2,187.18,0.68]
[1755299049420,9.28284917,187.2,187.16,0.68]
[1755299049610,9.28284917,187.17,187.14,5.34359303]
[1755299049808,9.28284917,187.15,187.12,6.02390292]
[1755299050034,9.28284917,187.14,187.12,5.94302731]
[1755299050344,41.18621557,187.21,187.08,5.34530682]
[1755299050345,9.28284917,187.13,187.08,5.34530682]
[1755299050644,9.28284917,187.12,187.08,5.34530682]
[1755299050844,9.28284917,187.09,187.08,5.34530682]
[1755299051030,9.28284917,187.09,187.03,13.36619699]
[1755299051031,15.10621557,187.13,187.03,13.36619699]
[1755299051211,9.28284917,187.06,187.02,5.3470217]
[1755299051421,15.10621557,187.11,187.02,5.3470217]
[1755299051722,0.08,187.22,187.1,9.28284917]
[1755299052021,15.10621557,187.23,187.16,9.28284917]
[1755299052339,0.08,187.28,187.18,9.28284917]
[1755299052630,23.3445131,187.35,187.19,0.68]
[1755299052631,16.059527,187.32,187.19,0.68]
[1755299052830,40.94,187.34,187.23,9.28284917]
[1755299052831,9.28284917,187.28,187.23,9.28284917]
[1755299053017,9.28284917,187.26,187.21,9.28284917]
[1755299053216,5.33933465,187.29,187.18,6.02223033]
[1755299053424,9.28284917,187.24,187.18,15.3050795]
[1755299053628,9.28284917,187.31,187.23,9.28284917]
[1755299053937,9.28284917,187.33,187.27,9.28284917]
[1755299054124,9.28284917,187.28,187.24,0.68]
[1755299054324,9.28284917,187.25,187.19,0.68]
[1755299054522,50.22284917,187.36,187.15,0.68]
[1755299054523,9.28284917,187.2,187.15,0.68]
[1755299054826,40.96,187.29,187.15,0.68]
[1755299054827,41.10621557,187.29,187.18,9.28284917]
[1755299055011,15.10621557,187.23,187.19,14.62501488]
[1755299055410,9.28284917,187.21,187.11,13.36099669]
[1755299055626,9.28284917,187.17,187.12,9.28284917]
[1755299055842,9.28284917,187.16,187.12,0.67]
[1755299056330,26.0,187.18,187.1,5.344724]
[1755299056537,15.10621557,187.27,187.17,9.28284917]
[1755299056860,15.10621557,187.27,187.13,0.67]
[1755299056861,26.0,187.2,187.16,0.67]
[1755299057018,9.28284917,187.17,187.12,0.67]
[1755299057218,9.28284917,187.16,187.12,0.67]
[1755299057631,9.28284917,187.17,187.13,0.67]
[1755299058237,9.28284917,187.16,187.11,14.62729895]
[1755299058416,26.0,187.16,187.11,14.62729895]
[1755299058736,26.0,187.16,187.12,9.95284917]
[1755299058950,9.28284917,187.15,187.1,9.28284917]
[1755299059317,26.0,187.12,187.07,0.67]
[1755299059527,9.28284917,187.1,187.06,5.34560112]
[1755299060327,26.0,187.12,187.04,9.95284917]
[1755299060328,9.28284917,187.08,187.04,6.01621528]
[1755299060618,9.28284917,187.07,187.04,0.67]
[1755299060819,9.28284917,187.06,187.02,41.34]
[1755299061146,26.0,187.12,187.03,0.67]
[1755299061442,26.0,187.12,187.06,9.28284917]
[1755299061443,24.38906474,187.11,187.06,9.28284917]
[1755299061648,41.32,187.18,187.07,0.67]
[1755299061834,26.0,187.13,187.1,9.28284917]
[1755299062038,24.38906474,187.17,187.11,9.28284917]
[1755299062228,9.28284917,187.16,187.11,9.28284917]
[1755299062545,35.28284917,187.16,187.11,9.28284917]
[1755299062727,35.28284917,187.16,187.09,0.67]
[1755299062728,9.28284917,187.15,187.1,9.28284917]
[1755299062933,9.28284917,187.15,187.11,5.34444978]
[1755299063430,41.32,187.18,187.05,26.0]
[1755299063431,26.0,187.11,187.05,9.95284917]
[1755299063638,9.28284917,187.1,187.06,5.34587832]
[1755299063843,9.28284917,187.08,187.05,5.346133]
[1755299064046,35.28284917,187.11,187.06,9.28284917]
[1755299064227,35.28284917,187.11,187.06,9.95284917]
[1755299064428,0.08,187.19,187.1,9.28284917]
[1755299064633,0.08,187.19,187.1,0.67]
[1755299064634,41.10621557,187.16,187.1,0.67]
[1755299064821,41.10621557,187.16,187.11,9.28284917]
[1755299065017,0.06,187.21,187.14,9.28284917]
[1755299065236,0.06,187.21,187.16,9.28284917]
[1755299065460,9.28284917,187.2,187.13,18.70357504]
[1755299065626,9.28284917,187.18,187.13,27.98642421]
[1755299065820,26.0,187.2,187.13,18.70357504]
[1755299066023,15.16621557,187.21,187.19,9.28284917]
[1755299066024,0.06,187.21,187.19,9.28284917]
[1755299066260,0.06,187.21,187.2,9.95284917]
[1755299066424,0.06,187.21,187.2,0.67]
[1755299066618,0.06,187.21,187.16,0.67]
[1755299066822,9.28284917,187.17,187.13,6.01387858]
[1755299067048,9.28284917,187.16,187.13,5.34387858]
[1755299067232,15.10621557,187.19,187.13,5.34387858]
[1755299067543,9.28284917,187.16,187.13,5.34387858]
[1755299067742,9.28284917,187.17,187.13,5.34387858]
[1755299068044,9.28284917,187.17,187.1,0.67]
[1755299068234,9.28284917,187.17,187.12,9.28284917]
[1755299068435,9.28284917,187.17,187.12,0.67]
[1755299069038,9.28284917,187.13,187.08,14.03326705]
[1755299069233,9.28284917,187.15,187.1,9.28284917]
[1755299069437,35.28284917,187.17,187.12,9.28284917]
[1755299069952,35.28284917,187.17,187.12,0.67]
[1755299070121,9.28284917,187.15,187.1,9.28284917]
[1755299070326,9.28284917,187.14,187.09,9.28284917]
[1755299070663,9.28284917,187.14,187.08,0.67]
[1755299070838,26.0,187.13,187.1,9.28284917]
[1755299071036,26.0,187.13,187.12,5.34416417]
[1755299071223,26.0,187.13,187.09,9.28284917]
[1755299071926,35.28284917,187.13,187.07,0.67]
[1755299072144,9.28284917,187.12,187.07,0.67]
[1755299072343,9.28284917,187.12,187.07,9.95284917]
[1755299073034,9.28284917,187.12,187.07,15.29819236]
[1755299073427,26.0,187.13,187.07,14.62819236]
[1755299073644,26.0,187.16,187.12,9.28284917]
[1755299073847,0.06,187.21,187.15,9.28284917]
[1755299074159,0.06,187.21,187.1,41.18]
[1755299074160,0.06,187.21,187.18,9.28284917]
[1755299074335,0.06,187.21,187.16,0.67]
[1755299074336,26.0,187.2,187.17,9.28284917]
[1755299074541,0.06,187.21,187.18,9.28284917]
[1755299074742,0.06,187.21,187.2,9.28284917]
[1755299074940,0.06,187.21,187.13,26.0]
[1755299075140,0.06,187.21,187.16,9.28284917]
[1755299075552,0.06,187.21,187.17,9.28284917]
[1755299075856,24.38906474,187.2,187.14,5.34359303]
[1755299076154,24.38906474,187.2,187.12,0.67]
[1755299076155,9.28284917,187.16,187.12,0.67]
[1755299076345,9.28284917,187.13,187.09,0.67]
[1755299076548,15.10621557,187.15,187.09,0.67]
[1755299076739,9.28284917,187.11,187.06,9.95284917]
[1755299076936,9.28284917,187.11,187.06,15.29872749]
[1755299077344,3.52430216,187.13,187.08,0.03]
[1755299077746,9.28284917,187.12,187.08,0.03]
[1755299078354,9.28284917,187.12,187.08,0.7]
[1755299078660,9.28284917,187.12,187.08,0.03]
[1755299078958,5.34331452,187.15,187.08,0.03]
[1755299079257,9.28284917,187.1,187.08,0.03]
[1755299079459,3.52894634,187.09,187.08,0.03]
[1755299079770,27.91801108,187.09,187.08,0.03]
[1755299080064,26.0,187.05,186.93,65.2475914]
[1755299080265,9.28284917,187.0,186.95,0.67]
[1755299080562,3.52894634,186.99,186.98,9.28284917]
[1755299080748,5.91009133,187.07,186.98,9.95284917]
[1755299080749,3.53771921,187.03,186.98,9.95284917]
[1755299080951,26.0,187.05,186.99,0.67]
[1755299081256,3.53727596,187.04,187.01,5.34730763]
[1755299081457,3.53727596,187.03,187.01,6.01730763]
[1755299081761,3.54006696,187.02,187.01,6.01730763]
[1755299081942,3.54006696,187.02,187.01,15.3001568]
[1755299082760,3.54006696,187.02,187.01,5.34730763]
[1755299083259,3.54006696,187.02,187.0,5.34759358]
[1755299083457,3.54006696,187.01,187.0,6.01759358]
[1755299083659,3.54006696,187.01,187.0,5.34759358]
[1755299084352,3.54006696,187.01,187.0,6.01759358]
[1755299085248,3.55267477,187.01,187.0,6.01759358]
[1755299085454,3.55267477,187.01,187.0,5.34759358]
[1755299085869,3.55267477,187.01,186.99,5.34786442]
[1755299086045,3.55267477,187.0,186.97,9.28284917]
[1755299086351,3.55267477,187.0,186.91,82.95686903]
[1755299086352,4.44084346,187.02,186.99,9.28284917]
[1755299086551,4.44084346,187.04,187.0,0.72]
[1755299086756,4.44084346,187.02,186.98,9.28284917]
[1755299086964,13.72369263,187.02,186.97,0.72]
[1755299087145,4.44084346,187.01,186.98,0.72]
[1755299087471,4.44084346,187.01,186.98,6.06788268]
[1755299088265,4.44084346,187.0,186.98,6.06788268]
[1755299088469,9.28284917,186.99,186.94,0.72]
[1755299088657,13.72369263,186.97,186.91,10.00284917]
[1755299089345,13.72369263,186.97,186.87,0.72]
[1755299089346,4.44084346,186.95,186.87,0.72]
[1755299089551,4.44084346,186.93,186.89,9.28284917]
[1755299089745,4.44084346,186.93,186.9,10.00284917]
[1755299089974,4.44084346,186.93,186.87,26.0]
[1755299089975,31.91009133,186.96,186.92,9.28284917]
[1755299090273,5.91009133,186.96,186.93,0.72]
[1755299090481,9.28284917,186.95,186.9,9.28284917]
[1755299090652,9.28284917,186.94,186.89,0.72]
[1755299091047,9.28284917,186.93,186.89,0.72]
[1755299091255,26.0,186.95,186.89,0.72]
[1755299091464,9.28284917,186.91,186.87,5.35131374]
[1755299091673,41.10621557,186.94,186.87,5.35131374]
[1755299091674,9.28284917,186.89,186.87,5.35131374]
[1755299092059,4.46721724,186.89,186.87,5.35131374]
[1755299092243,9.28284917,186.89,186.87,5.35131374]
[1755299092448,9.28284917,186.88,186.85,5.35188654]
[1755299092675,13.75004662,186.86,186.84,5.35211383]
[1755299092867,9.28284917,186.85,186.84,5.35211383]
[1755299093208,26.0,186.83,186.82,5.5526803]
[1755299093476,13.75004662,186.85,186.82,5.5526803]
[1755299094059,9.28284917,186.84,186.82,5.5526803]
[1755299094277,24.38906474,186.83,186.82,0.2]
[1755299094747,9.28284917,186.85,186.82,5.55274595]
[1755299095494,19.57341302,186.86,186.82,5.55274595]
[1755299095664,9.28284917,186.84,186.82,5.55274595]
[1755299095986,9.28284917,186.83,186.82,0.2]
[1755299096277,15.10621557,186.86,186.82,5.55274595]
[1755299096481,9.28284917,186.84,186.82,5.55274595]
[1755299096679,9.28284917,186.85,186.82,5.55274595]
[1755299096865,9.28284917,186.84,186.82,0.2]
[1755299097086,9.28284917,186.83,186.82,0.2]
[1755299097487,19.57341302,186.86,186.82,0.2]
[1755299097678,9.28284917,186.83,186.82,0.2]
[1755299097881,15.10621557,186.83,186.82,0.2]
[1755299098072,24.43906474,186.83,186.82,0.2]
[1755299098271,15.10621557,186.82,186.7,0.72]
[1755299098471,19.54308716,186.78,186.7,0.72]
[1755299098671,9.28284917,186.73,186.7,0.72]
[1755299098884,19.54308716,186.78,186.71,5.35589952]
[1755299099086,3.55015832,186.77,186.72,0.72]
[1755299099298,3.54609864,186.82,186.76,9.28284917]
[1755299099566,3.54609864,186.81,186.8,5.35331905]
[1755299099864,12.82894781,186.83,186.8,5.35331905]
[1755299100071,15.10621557,186.85,186.81,0.72]
[1755299100282,8.93443449,186.94,186.81,0.72]
[1755299100283,13.71972076,186.9,186.84,9.28284917]
[1755299100479,5.95626326,186.93,186.86,9.28284917]
[1755299100480,3.54539747,186.89,186.86,9.28284917]
[1755299100689,4.43687159,186.93,186.87,9.28284917]
[1755299100690,3.54539747,186.88,186.87,9.28284917]
[1755299100873,3.54539747,186.88,186.86,0.72]
[1755299101067,29.80939376,186.93,186.87,10.00284917]
[1755299101271,3.54470081,186.92,186.88,9.28284917]
[1755299101490,3.54470081,186.91,186.89,5.35074107]
[1755299101699,9.28284917,186.94,186.89,5.35074107]
[1755299101700,3.54470081,186.92,186.9,0.72]
[1755299101892,9.28284917,186.97,186.9,0.72]
[1755299102078,9.28284917,186.95,186.9,0.72]
[1755299102266,3.54332678,186.96,186.9,0.72]
[1755299102468,9.28284917,186.96,186.91,9.28284917]
[1755299102674,3.54332678,186.98,186.92,10.00284917]
[1755299102870,50.36284917,187.0,186.94,9.28284917]
[1755299103098,3.54273924,186.99,186.93,9.28284917]
[1755299103384,3.54273924,186.99,186.9,0.72]
[1755299103385,41.22,187.05,186.97,9.28284917]
[1755299103595,12.82509673,187.04,186.98,14.63101474]
[1755299103883,0.06,187.05,186.99,0.72]
[1755299104279,0.06,187.05,187.01,9.28284917]
[1755299104599,0.06,187.05,187.02,0.72]
[1755299104789,0.06,187.05,186.98,18.71857951]
[1755299104790,0.06,187.05,187.03,10.00284917]
[1755299104990,0.06,187.05,187.03,0.72]
[1755299105202,0.06,187.07,187.04,10.00284917]
[1755299105384,9.28284917,187.17,187.06,9.28284917]
[1755299105575,0.06,187.18,187.07,60.60957394]
[1755299105774,9.28284917,187.12,187.08,0.72]
[1755299105978,9.28284917,187.15,187.09,10.00284917]
[1755299106175,0.06,187.18,187.12,9.28284917]
[1755299106404,0.06,187.18,187.13,9.28284917]
[1755299106697,9.34284917,187.18,187.14,0.72]
[1755299107071,0.06,187.18,187.14,0.72]
[1755299107410,0.06,187.18,187.15,10.00284917]
[1755299107702,0.06,187.18,187.16,5.34302201]
[1755299107902,0.06,187.18,187.12,0.72]
[1755299108227,0.06,187.18,187.14,9.28284917]
[1755299108373,0.06,187.18,187.14,10.00284917]
[1755299108788,0.06,187.18,187.15,9.28284917]
[1755299109072,0.06,187.18,187.15,10.00284917]
[1755299109500,0.06,187.18,187.12,18.7045746]
[1755299109501,0.06,187.18,187.14,5.34359303]
[1755299109677,9.34284917,187.18,187.14,5.34359303]
[1755299109878,0.06,187.18,187.14,14.6264422]
[1755299110074,9.28284917,187.17,187.14,0.72]
[1755299110389,9.28284917,187.17,187.09,13.36251453]
[1755299110588,9.28284917,187.1,187.06,0.72]
[1755299110903,15.10621557,187.15,187.07,6.06559255]
[1755299111087,9.28284917,187.17,187.11,9.28284917]
[1755299111287,15.10621557,187.16,187.12,9.28284917]
[1755299111488,15.10621557,187.16,187.14,5.34359303]
[1755299111679,15.10621557,187.16,187.09,10.00284917]
[1755299111879,9.28284917,187.14,187.09,10.00284917]
[1755299112082,9.28284917,187.14,187.1,0.72]
[1755299112410,9.28284917,187.14,187.08,5.34530682]
[1755299112411,9.28284917,187.16,187.11,0.72]
[1755299112709,0.06,187.18,187.15,9.28284917]
[1755299112897,0.06,187.18,187.17,9.28284917]
[1755299113205,0.06,187.2,187.17,0.72]
[1755299113407,0.06,187.2,187.16,9.28284917]
[1755299113598,0.06,187.2,187.19,9.28284917]
[1755299114005,0.06,187.2,187.19,10.00284917]
[1755299114508,12.81913538,187.31,187.2,9.28284917]
[1755299114691,11.52366117,187.33,187.23,9.28284917]
[1755299114895,11.52366117,187.33,187.28,9.28284917]
[1755299115195,9.28284917,187.29,187.2,0.72]
[1755299115521,9.28284917,187.24,187.2,0.72]
[1755299115701,9.28284917,187.23,187.2,6.06187874]
[1755299115887,9.28284917,187.25,187.21,0.7]
[1755299116090,9.28284917,187.24,187.21,0.7]
[1755299116287,20.44592925,187.28,187.21,0.7]
[1755299116597,20.44592925,187.28,187.2,5.34187874]
[1755299116803,9.28284917,187.28,187.23,9.28284917]
[1755299117008,9.28284917,187.28,187.2,5.34187874]
[1755299117009,0.1,187.33,187.24,9.98284917]
[1755299117310,9.28284917,187.29,187.24,0.7]
[1755299117679,35.28284917,187.29,187.24,15.32339958]
[1755299117885,15.10621557,187.32,187.28,9.28284917]
[1755299118103,9.38284917,187.33,187.29,0.7]
[1755299118492,26.0,187.3,187.27,9.28284917]
[1755299118699,9.28284917,187.32,187.27,9.98284917]
[1755299119001,9.28284917,187.31,187.26,9.28284917]
[1755299119200,9.28284917,187.3,187.24,6.04055041]
[1755299119492,9.28284917,187.29,187.24,15.32339958]
[1755299119702,26.0,187.3,187.26,9.28284917]
[1755299119905,26.0,187.3,187.27,9.28284917]
[1755299120282,26.0,187.3,187.27,9.98284917]
[1755299120696,26.0,187.3,187.27,0.7]
[1755299121014,26.0,187.3,187.28,0.7]
[1755299121513,0.1,187.33,187.28,9.98284917]
[1755299121717,0.1,187.33,187.3,5.33902829]
[1755299121897,0.1,187.33,187.3,14.62187746]
[1755299122089,0.1,187.33,187.31,9.28284917]
[1755299122296,0.1,187.33,187.32,9.28284917]
[1755299122520,0.1,187.33,187.32,0.7]
[1755299123015,0.1,187.33,187.3,14.62187746]
[1755299123239,0.1,187.33,187.31,0.7]
[1755299123426,0.1,187.33,187.32,0.7]
[1755299123590,0.1,187.33,187.32,6.03845825]
[1755299124416,9.38284917,187.33,187.27,0.7]
[1755299124630,9.28284917,187.32,187.27,0.7]
[1755299124786,9.28284917,187.31,187.27,41.64]
[1755299124990,0.1,187.33,187.28,0.7]
[1755299124991,9.28284917,187.32,187.28,0.7]
[1755299125412,9.28284917,187.32,187.26,18.69059061]
[1755299125701,9.28284917,187.31,187.28,5.33959846]
[1755299126015,0.1,187.33,187.29,0.7]
[1755299126227,0.1,187.33,187.3,0.7]
[1755299126720,9.38284917,187.33,187.28,14.62244763]
[1755299126915,0.1,187.33,187.29,0.7]
[1755299127331,0.1,187.33,187.29,9.98284917]
[1755299127503,0.1,187.33,187.3,0.7]
[1755299127701,0.1,187.33,187.32,14.62130742]
[1755299128025,0.1,187.33,187.29,5.33931336]
[1755299128026,9.38284917,187.33,187.29,5.33931336]
[1755299128200,0.1,187.33,187.29,46.21931336]
[1755299128402,9.38284917,187.33,187.29,46.91931336]
[1755299128601,9.28284917,187.32,187.29,46.91931336]
[1755299128824,0.1,187.33,187.29,46.21931336]
[1755299129015,9.38284917,187.33,187.29,46.21931336]
[1755299129213,0.1,187.33,187.3,0.7]
[1755299129413,0.1,187.33,187.31,0.7]
[1755299129707,0.1,187.33,187.32,15.32130742]
[1755299130117,0.06,187.37,187.32,28.66745305]
[1755299130428,0.06,187.39,187.36,9.28284917]
[1755299130600,0.06,187.39,187.37,9.28284917]
[1755299130799,9.34284917,187.39,187.37,41.1]
[1755299131031,0.06,187.39,187.37,41.1]
[1755299131233,0.06,187.39,187.38,0.7]
[1755299131408,0.06,187.39,187.38,9.98284917]
[1755299131736,0.06,187.39,187.38,6.03674885]
[1755299131944,0.06,187.39,187.38,5.33674885]
[1755299133825,0.06,187.39,187.37,5.33700033]
[1755299134130,0.06,187.39,187.38,0.7]
[1755299134329,0.06,187.39,187.37,47.13700033]
[1755299134736,0.06,187.39,187.37,46.43700033]
[1755299135029,0.06,187.39,187.35,15.32022052]
[1755299135207,9.28284917,187.37,187.36,41.06]
[1755299135628,9.28284917,187.37,187.33,46.39817327]
[1755299135834,9.28284917,187.34,187.3,41.06]
[1755299136030,9.28284917,187.32,187.3,41.06]
[1755299136735,5.93501069,187.31,187.3,41.06]
[1755299136914,15.10621557,187.35,187.3,41.06]
[1755299137115,5.93501069,187.32,187.3,41.06]
[1755299137524,26.0,187.35,187.31,0.7]
[1755299137726,0.06,187.39,187.34,11.27289902]
[1755299137919,0.06,187.39,187.35,6.63501069]
[1755299138132,31.93501069,187.37,187.32,5.33845825]
[1755299138328,5.93501069,187.35,187.32,46.37845825]
[1755299138715,35.32106299,187.38,187.33,10.02106299]
[1755299138915,35.32106299,187.38,187.34,0.7]
[1755299139435,35.38106299,187.39,187.35,0.7]
[1755299139822,35.38106299,187.39,187.36,5.33731853]
[1755299140538,26.0,187.34,187.26,0.7]
[1755299140841,9.32106299,187.31,187.28,41.0]
[1755299141026,9.32106299,187.32,187.28,41.0]
[1755299141545,9.32106299,187.33,187.28,51.02106299]
[1755299141715,9.32106299,187.33,187.3,5.33902829]
[1755299142317,26.0,187.33,187.32,0.03]
[1755299143442,35.32106299,187.33,187.32,0.03]
[1755299143643,35.32106299,187.34,187.32,0.03]
[1755299143851,26.0,187.33,187.32,0.73]
[1755299144015,35.32106299,187.37,187.33,0.7]
[1755299144338,9.32106299,187.34,187.32,0.03]
[1755299144545,12.85508417,187.33,187.32,0.03]
[1755299144748,38.85508417,187.33,187.32,0.03]
[1755299146745,29.53402118,187.33,187.32,0.75]
[1755299147627,3.53402118,187.33,187.32,0.75]
[1755299147829,3.53402118,187.33,187.32,10.07106299]
[1755299148032,3.53402118,187.33,187.32,15.40952124]
[1755299148845,3.53402118,187.33,187.32,56.28952124]
[1755299149322,1e-08,187.33,187.32,56.28952124]
[1755299149726,4.49687159,187.39,187.32,96.32795813]
[1755299149920,0.06,187.39,187.37,9.32106299]
[1755299150152,4.49687159,187.39,187.38,5.33674885]
[1755299150729,0.06,187.39,187.38,15.37781184]
[1755299150934,0.06,187.39,187.38,5.33674885]
[1755299151347,9.62106299,187.39,187.33,5.33817327]
[1755299151658,9.32106299,187.36,187.33,46.27817327]
[1755299151861,4.45366349,187.35,187.33,46.27817327]
[1755299154956,4.46086324,187.31,187.3,40.88]
[1755299155160,4.46249114,187.34,187.3,50.92106299]
[1755299155358,41.33732625,187.39,187.31,0.72]
[1755299155568,26.0,187.36,187.32,9.32106299]
[1755299155759,9.32106299,187.33,187.28,5.36953202]
[1755299155936,9.32106299,187.3,187.29,40.94]
[1755299156460,9.32106299,187.31,187.29,40.94]
[1755299156768,9.32106299,187.3,187.28,0.03]
[1755299157069,9.32106299,187.29,187.28,0.03]
[1755299157559,9.32106299,187.3,187.28,5.36957166]
[1755299157865,9.32106299,187.31,187.28,5.36957166]
[1755299158160,9.32106299,187.31,187.28,0.03]
[1755299158659,9.32106299,187.3,187.28,0.03]
[1755299159546,9.32106299,187.29,187.28,0.03]
[1755299159934,24.42727856,187.29,187.28,0.03]
[1755299160331,15.10621557,187.29,187.28,0.03]
[1755299160667,21.04292669,187.29,187.28,0.03]
[1755299161036,5.93671112,187.29,187.28,0.03]
[1755299161363,0.06,187.37,187.28,6.68671112]
[1755299161549,0.06,187.37,187.34,5.93671112]
[1755299161750,0.06,187.37,187.33,5.93671112]
[1755299162055,0.06,187.37,187.34,0.72]
[1755299162256,0.06,187.37,187.35,5.33760341]
[1755299162651,0.06,187.37,187.36,0.72]
[1755299163566,0.06,187.37,187.36,6.65671112]
[1755299163868,0.06,187.37,187.36,41.56]
[1755299164176,0.06,187.37,187.36,40.84]
[1755299164475,5.99671112,187.37,187.34,5.33788615]
[1755299164763,31.99671112,187.37,187.34,0.72]
[1755299164936,5.93671112,187.36,187.33,46.21813033]
[1755299165861,5.93671112,187.36,187.33,40.88]
[1755299166034,5.93671112,187.36,187.33,46.21811202]
[1755299166759,5.93671112,187.36,187.33,46.93811202]
[1755299167362,5.93671112,187.35,187.33,46.218163]
[1755299167557,26.06,187.37,187.34,0.72]
[1755299167742,26.06,187.37,187.33,46.218163]
[1755299167944,5.93671112,187.35,187.33,46.218163]
[1755299168154,26.06,187.37,187.33,46.218163]
[1755299168357,5.93671112,187.36,187.33,46.938163]
[1755299168664,5.93671112,187.35,187.33,46.938163]
[1755299169176,5.93671112,187.35,187.33,40.88]
[1755299169340,5.93671112,187.35,187.33,46.21809531]
[1755299169661,31.99671112,187.37,187.34,0.72]
[1755299170164,31.99671112,187.37,187.33,46.21809531]
[1755299170347,5.93671112,187.36,187.34,0.72]
[1755299170961,5.93671112,187.36,187.34,6.05783401]
[1755299171257,5.93671112,187.35,187.33,40.88]
[1755299171766,5.93671112,187.34,187.31,40.72]
[1755299171970,26.06,187.37,187.31,46.65671112]
[1755299172170,0.06,187.37,187.32,6.65671112]
[1755299172470,0.06,187.37,187.36,11.27402965]
[1755299172671,0.06,187.39,187.36,52.01402965]
[1755299172973,0.06,187.41,187.38,5.93671112]
[1755299173193,0.06,187.41,187.4,5.93671112]
[1755299173481,0.06,187.41,187.4,0.72]
[1755299173645,0.06,187.41,187.4,41.48]
[1755299173844,9.58204856,187.41,187.37,0.72]
[1755299174051,3.64533744,187.41,187.38,47.39671112]
[1755299174249,3.64533744,187.41,187.36,18.68061485]